Cogmind - Beta 13 @@@ ROGUE MODE // 2024.08.04 @ 12:07:18 Player: btracker Result: Destroyed by S-10 Pest with Light Assault Rifle Performance ------------- Evolutions (1) 500 Regions Visited (3) 600 Robots Destroyed (16) 80 Value Destroyed (408) 408 Prototype IDs (0) 0 Alien Tech Used (0) 0 Bonus (0) 0 TOTAL SCORE: 1588 Bonus ------- None Cogmind --------- Core Integrity 0/400 Matter 290/300 Energy 100/100 System Corruption 0% Temperature Cool (0) Movement Core (100) Ox1 Location -9/Mines Parts ------- > --- POWER (1) -------- (None) > --- PROPULSION (4) --- (None) > --- UTILITY (2) ------ Small Storage Unit > --- WEAPON (2) ------- (None) > --- INVENTORY (8) ---- Light Ion Engine Improved Ion Engine Wheel Visual Processing Unit Signal Interpreter Peak State ------------ > --- POWER ------------ Improved Ion Engine > --- PROPULSION ------- Aluminum Leg Aluminum Leg Aluminum Leg Improved Aluminum Leg > --- UTILITY ---------- Heat Sink Small Storage Unit > --- WEAPON ----------- Heavy EM Pulse Gun Beam Rifle > --- INVENTORY -------- Light Ion Engine Improved Ion Engine Wheel Visual Processing Unit Signal Interpreter [Rating: 13] Favorites ----------- Power Light Ion Engine Engine Light Ion Engine Propulsion Aluminum Leg Leg Aluminum Leg Wheel Wheel Utility Small Storage Unit Device Improved Heat Sink Storage Small Storage Unit Weapon Medium Laser Energy Gun Medium Laser Ballistic Gun Light Assault Rifle Build | -11 -10 -9 -9 ------- Run | Yrd Mat Mat Min Slots Evolved 2 | . . 2 . Power . | . . . . Propulsion 2 | . . 2 . Utility . | . . . . Weapon . | . . . . Parts Attached 24 | 7 6 8 3 Power 5 | 1 2 2 . Engine 5 | 1 2 2 . Core . | . . . . Reactor . | . . . . Propulsion 9 | 3 2 2 2 Treads . | . . . . Leg 8 | 2 2 2 2 Wheel 1 | 1 . . . Hover . | . . . . Flight . | . . . . Utility 3 | 1 1 1 . Device 2 | . 1 1 . Storage 1 | 1 . . . Processor . | . . . . Hackware . | . . . . Protection . | . . . . Artifact . | . . . . Weapon 7 | 2 1 3 1 Energy Gun 4 | 1 . 3 . Energy Cannon . | . . . . Ballistic Gun 3 | 1 1 . 1 Ballistic Cannon . | . . . . Launcher . | . . . . Special Weapon . | . . . . Impact Weapon . | . . . . Slashing Weapon . | . . . . Piercing Weapon . | . . . . Special Melee Weapon . | . . . . Unidentified Prototypes . | . . . . Parts Lost 16 | . 3 2 11 Power 4 | . 2 1 1 Propulsion 6 | . . . 6 Utility 2 | . . 1 1 Weapon 4 | . 1 . 3 Highest Loss Streak 11 | . 2 2 11 To Critical Strikes . | . . . . Average Slot Usage (%) 90 | . 93 84 90 Engine 10 | . 11 7 9 Leg 32 | . 27 34 39 Device 10 | . 11 9 10 Storage 12 | . 14 11 11 Energy Gun 14 | . 12 14 18 Ballistic Gun 8 | . 14 6 . Naked Turns . | . . . . Heaviest Build 19 | 11 12 19 19 Greatest Support 48 | 20 20 43 48 Greatest Overweight (x) 1 | 1 1 . . Average Overweight (x) . | . . . . Largest Inventory Capacity 8 | 8 8 8 8 Average Capacity 7 | 7 8 8 8 Most Carried 6 | 3 4 6 5 Average Carried 3 | 1 3 2 5 Final Capacity 8 | 8 8 8 8 Final Carried 5 | 3 3 5 5 Class Distribution -------------------- 56% | Scavenger-Mutant 43% | Mutant Dominant Class ---------------- Mutant | -10/Materials Scavenger-Mutant | -9/Materials Scavenger-Mutant | -9/Mines Resources | -11 -10 -9 -9 ----------- Run | Yrd Mat Mat Min Matter Collected 450 | 252 110 73 15 Remotely . | . . . . Salvage Created 504 | . 322 166 16 Parts 34 | . 20 12 2 Haulers Intercepted . | . . . . Recyclers Shooed 1 | . . 1 . Parts Field Recycled . | . . . . Retrieved Matter . | . . . . Parts Self-Destructed . | . . . . Prevented . | . . . . Kills | -11 -10 -9 -9 ------- Run | Yrd Mat Mat Min Combat Hostiles Destroyed 15 | . 11 3 1 Guns 15 | . 11 3 1 Classes Destroyed 5 | . 2 3 . Watcher 1 | . . 1 . Swarmer 6 | . 5 . 1 Grunt 7 | . 6 1 . Brawler 1 | . . 1 . Sentry 1 | . . 1 . Best Kill Streak 4 | . 4 2 1 Combat Bots Only 4 | . 4 2 1 Max Kills in Single Turn 1 | . 1 1 1 Gunslinging . | . . . . Exploded . | . . . . Melee . | . . . . Uniques/NPCs Destroyed . | . . . . Combat | -11 -10 -9 -9 -------- Run | Yrd Mat Mat Min Hostile Shots Fired 302 | . 98 32 172 Missed 91 | . 34 12 45 Damage Taken 1966 | . 604 262 1100 Core 553 | . 152 90 311 Absorbed by Shields . | . . . . Core Remaining (%) 69 | 100 39 . . Volleys Fired 73 | . 42 16 15 Largest 2 | . 2 2 2 Hottest 101 | . 70 95 101 Shots Fired 127 | . 78 32 17 Gun 127 | . 78 32 17 Cannon . | . . . . Launcher . | . . . . Special . | . . . . Kinetic 60 | . 42 13 5 Thermal 62 | . 36 16 10 Explosive . | . . . . Electromagnetic 5 | . . 3 2 Robot Hit Streak 8 | . 8 7 4 Robot Miss Streak 4 | . 4 2 3 Penetration Max . | . . . . Secondary Targets 6 | . 5 1 . Max Gunslinging Chain 1 | . 1 1 . Shots Hit Robots 75 | . 42 24 9 Core Hits 33 | . 21 8 4 Critical Kills . | . . . . Critical Parts Destroyed . | . . . . Critical Strikes 5 | . 5 . . Burn 5 | . 5 . . Melee Attacks . | . . . . Impact . | . . . . Slashing . | . . . . Piercing . | . . . . Sneak Attacks . | . . . . Combat Hostiles . | . . . . Follow-up Attacks . | . . . . Damage Inflicted 890 | . 470 269 151 Guns 887 | . 470 269 148 Cannons . | . . . . Explosions . | . . . . Melee . | . . . . Ramming 3 | . . . 3 Kinetic 306 | . 194 92 20 Thermal 527 | . 276 123 128 Explosive . | . . . . Electromagnetic 54 | . . 54 . Impact . | . . . . Slashing . | . . . . Piercing . | . . . . Highest Corruption . | . . . . Average Corruption . | . . . . Corruption Purged . | . . . . Corruption Blocked . | . . . . Overload Shots . | . . . . Overflow Damage . | . . . . Projectiles . | . . . . Explosions . | . . . . Melee . | . . . . Knockbacks . | . . . . Impact . | . . . . Kinetic . | . . . . Secondary . | . . . . Self-Inflicted Damage . | . . . . Shots . | . . . . Rammed . | . . . . Targets Rammed 2 | . . . 2 Kicked 2 | . . . 2 Crushed . | . . . . Highest Temperature 161 | . 161 20 51 Average Temperature 34 | . 42 8 21 Received Heat Transfer 405 | . 180 72 153 Siege Activations . | . . . . Robots Corrupted . | . . . . Combat Hostiles . | . . . . Parts Fried . | . . . . Impact Corruptions . | . . . . Robots Melted . | . . . . Combat Hostiles . | . . . . Parts Melted 3 | . 3 . . Heat Transferred 1887 | . 1184 370 333 Parts Sabotaged . | . . . . Parts Stolen . | . . . . Parts Stripped . | . . . . Power Chain Reactions . | . . . . Alert | -11 -10 -9 -9 ------- Run | Yrd Mat Mat Min Peak Influence 270 | . 270 180 70 Initial 113 | . . 113 70 Average 108 | . 143 141 59 Maximum Alert Level 1 | . 1 . . Low Security (%) 94 | 100 86 100 100 Level 1 5 | . 13 . . Level 2 . | . . . . Level 3 . | . . . . Level 4 . | . . . . Level 5 . | . . . . High Security . | . . . . Max Security . | . . . . Squads Dispatched 2 | . 2 . . Investigation . | . . . . Extermination . | . . . . Reinforcement 2 | . 2 . . Assault . | . . . . Garrison . | . . . . Intercept . | . . . . Searches Triggered . | . . . . Construction Impeded . | . . . . Haulers Reinforced . | . . . . Active Scanning Responses . | . . . . Cargo Convoy Interrupts . | . . . . Stealth | -11 -10 -9 -9 --------- Run | Yrd Mat Mat Min Distress Signals 2 | . 1 1 . Communications Jammed . | . . . . Distress Signals . | . . . . Times Spotted 37 | . 20 8 9 Peak Tracking Total 9 | . 6 4 9 Tactical Retreats 2 | . 2 . . Traps | -11 -10 -9 -9 ------- Run | Yrd Mat Mat Min Traps Triggered . | . . . . Indirectly . | . . . . Trap Hack Attempts . | . . . . Triggered . | . . . . Disarmed . | . . . . Reprogrammed . | . . . . Reused . | . . . . Traps Extracted . | . . . . Installed . | . . . . Triggered . | . . . . Machines | -11 -10 -9 -9 ---------- Run | Yrd Mat Mat Min Machines Disabled . | . . . . Max in Single Turn . | . . . . Machines Repaired . | . . . . Machines Dismantled . | . . . . Machines Sabotaged . | . . . . Overloaded Fab Kills . | . . . . Hacking | -11 -10 -9 -9 --------- Run | Yrd Mat Mat Min Machines Accessed 4 | . 3 1 . Terminals 3 | . 2 1 . Fabricators . | . . . . Repair Stations . | . . . . Recycling Units 1 | . 1 . . Scanalyzers . | . . . . Garrison Access . | . . . . Total Hacks 7 | . 5 2 . Successful 2 | . 2 . . Failed 5 | . 3 2 . Catastrophic 2 | . 1 1 . Database Lockouts . | . . . . Manual 6 | . 4 2 . Terminals 6 | . 4 2 . Fabricators . | . . . . Repair Stations . | . . . . Recycling Units 1 | . 1 . . Scanalyzers . | . . . . Garrison Access . | . . . . Terminal Hacks 1 | . 1 . . Recall Reinforcements 1 | . 1 . . Fabricator Hacks . | . . . . Repair Station Hacks . | . . . . Recycling Unit Hacks 1 | . 1 . . Report Inventory 1 | . 1 . . Scanalyzer . | . . . . Garrison Access Hacks . | . . . . Unauthorized Hacks . | . . . . Terminals . | . . . . Fabricators . | . . . . Repair Stations . | . . . . Recycling Units . | . . . . Scanalyzers . | . . . . Garrison Access . | . . . . Data Cores Recovered . | . . . . Used . | . . . . Hacking Detections 2 | . 1 1 . Full Trace Events 1 | . 1 . . Feedback Events . | . . . . Feedback Blocked . | . . . . Robot Schematics Acquired . | . . . . Robots Built . | . . . . Authchips . | . . . . Time . | . . . . Total Robot Build Rating . | . . . . Part Schematics Acquired . | . . . . Parts Built . | . . . . Authchips . | . . . . Time . | . . . . Total Part Build Rating . | . . . . Parts Repaired . | . . . . Time . | . . . . Parts Recycled . | . . . . Recycled Matter . | . . . . Retrieved Matter . | . . . . Retrieved Components . | . . . . Parts Scanalyzed . | . . . . Part Schematics Acquired . | . . . . Parts Damaged . | . . . . Bothacking | -11 -10 -9 -9 ------------ Run | Yrd Mat Mat Min Used RIF Installer . | . . . . Robots Hacked . | . . . . Non-combat . | . . . . Combat . | . . . . Robot Hacks Applied . | . . . . Relay Couplers Released . | . . . . Fabnet Peak Effective % . | . . . . Robots Rewired . | . . . . Allies Hacked . | . . . . Hacks Repelled . | . . . . Allies | -11 -10 -9 -9 -------- Run | Yrd Mat Mat Min Total Allies 2 | . . . 2 Largest Group 2 | . . . 2 Highest-Rated Group 43 | . . . 43 Highest-Rated Ally 31 | . . . 31 Total Orders . | . . . . Ally Attacks 2 | . . . 2 Total Damage 22 | . . . 22 Kills . | . . . . Allies Corrupted . | . . . . Allies Melted . | . . . . Intel | -11 -10 -9 -9 ------- Run | Yrd Mat Mat Min Robot Analysis Total . | . . . . Derelict Logs Recovered . | . . . . Drone Launches . | . . . . Drone Recoveries . | . . . . Exploration | -11 -10 -9 -9 ------------- Run | Yrd Mat Mat Min Turns Passed 806 | 82 331 209 184 Spaces Moved 468 | 53 174 119 122 Core 5 | 5 . . . Treads . | . . . . Legs 462 | 47 174 119 122 Wheels 1 | 1 . . . Hover . | . . . . Flight . | . . . . Fastest Speed 50 | 50 120 120 120 Average Speed 121 | 129 120 120 120 Slowest Speed 190 | 190 190 120 120 Overloaded Moves . | . . . . Propulsion Burnouts . | . . . . Robots Hopped . | . . . . Cave-ins Triggered . | . . . . Exploration Rate (%) 21 | 4 41 17 24 Regions Visited 3 Branch Regions 1 Pre-discovered Areas . | . . . . Known Exits Taken . | . . . . Unknown Exits Taken 3 | 1 1 1 . Scrap Searched . | . . . . Spaces Dug . | . . . . Terrain Destroyed . | . . . . Melee . | . . . . Projectile . | . . . . AOE . | . . . . Terrain Rammed . | . . . . Walls Destroyed . | . . . . Machines Disabled . | . . . . Actions | -11 -10 -9 -9 --------- Run | Yrd Mat Mat Min Total 584 | 63 225 154 142 Wait 6 | . . 6 . Move 465 | 52 173 118 122 Hop . | . . . . Pick Up 8 | 3 1 4 . Fast Attach 19 | 7 5 4 3 Attach 4 | . 1 3 . Detach . | . . . . Swap 1 | . . 1 . Drop 6 | 1 3 2 . Fire 73 | . 42 16 15 Melee . | . . . . Ram . | . . . . Kick 2 | . . . 2 Crush . | . . . . Escape Stasis . | . . . . Rewire . | . . . . Trap . | . . . . Miscellaneous . | . . . . Route ------- -11/Scrapyard -10/Materials -9/Materials -9/Mines History --------- Turn | Location | Event 3 | -11/Scrapyard | Discovered new exit (range 15) 83 | -11/Scrapyard | Entered Materials 369 | -10/Materials | Core integrity fell below 50% 404 | -10/Materials | Discovered new exit (range 7) 414 | -10/Materials | Entered another Materials area 414 | -9/Materials | Evolved 2 slots: Propulsion x2 604 | -9/Materials | Discovered new exit (range 16) 623 | -9/Materials | Entered Mines 789 | -9/Mines | Core integrity fell below 50% 801 | -9/Mines | Core integrity fell below 20% 807 | -9/Mines | Destroyed by S-10 Pest with Light Assault Rifle Last Messages --------------- 00776_ G-47 Trooper destroyed. 00777_ S-10 Pest destroyed. 00777_ R-06 Scavenger collects Flight Unit. 00778_ Aluminum Leg destroyed. 00778_ R-06 Scavenger collects Lgt. Ion Engine. 00780_ Acquired Aluminum Leg. 00783_ Acquired 15 matter. 00785_ Aluminum Leg destroyed. 00786_ Imp. Aluminum Leg destroyed. 00787_ Imp. Ion Engine destroyed. 00791_ Heat Sink destroyed. 00791_ Carbon-fiber Leg destroyed. 00792_ Beam Rifle destroyed. 00796_ S-10 Pest destroyed. 00796_ Aluminum Leg destroyed. 00797_ Acquired Lgt. Assault Rifle. 00797_ R-06 Scavenger collects Lgt. Ion Engine. 00802_ R-06 Scavenger collects Flight Unit. 00806_ R-06 Scavenger destroyed. 00807_ Lgt. Assault Rifle destroyed. Map ----- +----------------------------------------------------+ | ?????????????????????????????????????????????????? | | ?????????????????????????????????????????????????? | | ?????????????????????????????????????????????????? | | ?????????????????????????????????????????????????? | | ?????????????????????????????????????????????????? | | ?????????????????????????????????????????????????? | | ?????????????????????????????????????????????????? | | ?????????????????????????????????????????????????? | | ?????????????????????????????????????????????????? | | ?????????????????????????????????????????????????? | | ?????????????????????????????????????????????????? | | ?????????????????????????????????????????????????? | | ?????????????????????????????????????????????????? | | ??????????????????#??????????????????????????????? | | ???????????????#### ?????????????????????????????? | | ???????????????? ?????????????????????????????? | | ?????????????????# ????????????????????????????? | | ?????????????????# ???####?????????????????????? | | ??????????????????# ?## ##????????????????????? | | ???????????????????? ## #????????????????????? | | ?????????????????????#% #????????????????????? | | ?????????????????????#% #????????????????????? | | ????????????????????##g s s ##???????????????????? | | ???????????????????## s s% #???????????????????? | | ?????????????????###% =!% s #####???????????????? | | ??????????????# *%@%% ####### #???? | | ??????????????## ## !=* #### t #????? | | ??????????????????## ##??# ######## #????? | | ???????????????????## ###???# #????????????#### | | ????????????????????## #??????# ############## # | | ?????????????????????## ???????# | | ??????????????????????# ???????############### | | ?????????????????????? ??????????????????????# | | ?????????????????????? ??????????????????????# # | | ?????????????????????##?????????????????????## ## | | ????????????????????????????????????????????# ## | | ????????????????????????????????????????????# # | | ????????????????????????????????????????????# # | | ????????????????????????????????????????????## ## | | ?????????????????????????????????????????????# ##? | | ?????????????????????????????????????????????# #?? | | ?????????????????????????????????????????????# #?? | | ?????????????????????????????????????????????# #?? | | ?????????????????????????????????????????????# #?? | | ?????????????????????????????????????????????# #?? | | ???????????????????????????????????????####### #?? | | ???????????????????????????????????????# #?? | | ???????????????????????????????????????# ##### #?? | | ?????????????????????????????????????????????# ### | | ?????????????????????????????????????????????# | +----------------------------------------------------+ Best States ------------- Heat Dissipation 42 Energy Generation 12 Energy Capacity 265 Matter Stores 300 Matter Capacity 300 Sight Range 16 Terrain Scan Density 10 Evasion (%) 55 Item Schematics ----------------- None Robot Schematics ------------------ None Fabricated ------------ Nothing Alien Tech Used ----------------- None Achievements -------------- None Challenges ------------ None Game ------ Seed GyrokineticMiningMapper Manual? 0 Play Time 00:10:48 Cumulative 8.0 hours Start 2024.08.04 @ 11:57:46 End 2024.08.04 @ 12:07:18 Sessions 1 Manual Loads 0 Difficulty Rogue Special Mode None Game No. 25 Rogue 25 Adventurer 0 Explorer 0 Win Type - Total 0 Types 0/0/0/0/0/0/0/0/0 Lore% 8 Gallery% 17 Achievement% 15 Wizard Run 0 Options --------- Layout 1 ASCII 0 Keyboard 0 Movement Mouse Keybinds 0 Fullscreen 1 Font 24/Smallcaps Map View 50x35 Zoom Use 0% Tactical HUD 1 Map Filters NONE Filters NONE Steam 1 RUN: 27fa4e2b-2d12-4fa9-8ee6-cba2631a0e88